Workbook

Sheet ORÇAMENTO
A1: <---- NUMERAR SERVIÇOS PARA CPU | C1: Ministério do Desenvolvimento Regional
C2: Companhia de Desenvolvimento dos Vales do São Francisco e do Parnaíba
C3: 1ª Superintendência Regional
B5: OBRA: | C5: MIRABELA - PAVIMENTAÇÃO ASFÁLTICA EM CBUQ - VIAS DIVERSAS (ITEM 2)
B6: DATA: | C6: OUTUBRO / 2023 | G6: BDI Serviços: | I6: ='BDI SERV'!D31/100 -> 0.2214
B7: PRAZO DE EXECUÇÃO: 180 DIAS | G7: BDI Fornecimentos: | I7: ='BDI FORN'!D31/100 -> 0.15
B8: ITEM | C8: DESCRIÇÃO | D8: REFER. | E8: UNID. | F8: QUANT. | G8: P. UNITÁRIO | H8: P.UNIT.C/ BDI | I8: P. TOTAL
A9: A | B9: 1 | C9: SERVIÇOS PRELIMINARES | I9: =SUM(I10:I14) -> 270300.96
A10: 1 | B10: 1.1 | C10: MOBILIZAÇÃO E DESMOBILIZAÇÃO | D10: CPU.1 | E10: GL | F10: 1 | G10: =VLOOKUP(A10,CPU!$A$1:$N$4651,9) -> 17226.52 | H10: =VLOOKUP(A10,CPU!$A$1:$N$4651,10) -> 21040.47 | I10: =ROUND(F10*H10,2) -> 21040.47 | O10: =I10-K10 -> 21040.47
A11: 2 | B11: 1.2 | C11: ADMINISTRAÇÃO LOCAL | D11: CPU.2 | E11: GL | F11: 1 | G11: =VLOOKUP(A11,CPU!$A$1:$N$4651,9) -> 178309.38 | H11: =VLOOKUP(A11,CPU!$A$1:$N$4651,10) -> 217787.08 | I11: =ROUND(F11*H11,2) -> 217787.08 | O11: 217787.08
A12: 3 | B12: 1.3 | C12: CANTEIRO DE OBRAS | D12: CPU.3 | E12: GL | F12: 1 | G12: =VLOOKUP(A12,CPU!$A$1:$N$4651,9) -> 13900.5 | H12: =VLOOKUP(A12,CPU!$A$1:$N$4651,10) -> 16978.07 | I12: =ROUND(F12*H12,2) -> 16978.07 | O12: 16978.07
A13: 4 | B13: 1.4 | C13: PLACA DE OBRA EM CHAPA DE AÇO GALVANIZADO | D13: 103689 | E13: M2 | F13: 6 | G13: =VLOOKUP(A13,CPU!$A$1:$N$4651,9) -> 340.5 | H13: =VLOOKUP(A13,CPU!$A$1:$N$4651,10) -> 415.89 | I13: =ROUND(F13*H13,2) -> 2495.34 | O13: 2495.34
A14: 5 | B14: 1.5 | C14: SERVIÇOS TOPOGRÁFICOS PARA PAVIMENTAÇÃO, INCLUSIVE NOTA DE SERVIÇO, ACOMPANHAMENTO E GREIDE | D14: 78472 | E14: M2 | F14: 30000 | G14: =VLOOKUP(A14,CPU!$A$1:$N$4651,9) -> 0.33 | H14: =VLOOKUP(A14,CPU!$A$1:$N$4651,10) -> 0.4 | I14: =ROUND(F14*H14,2) -> 12000 | O14: 12000
A15: B | B15: 2 | C15: TERRAPLANAGEM E PAVIMENTAÇÃO | I15: =SUM(I16:I22) -> 1032119 | O15: 1032119
A16: 6 | B16: 2.1 | C16: ESCAVAÇÃO HORIZONTAL EM SOLO DE 1A CATEGORIA | D16: 101116 | E16: M3 | F16: 4500 | G16: =VLOOKUP(A16,CPU!$A$1:$N$4651,9) -> 2.2 | H16: =VLOOKUP(A16,CPU!$A$1:$N$4651,10) -> 2.69 | I16: =ROUND(F16*H16,2) -> 12105 | O16: 12105
A17: 7 | B17: 2.2 | C17: CARGA, MANOBRA E DESCARGA DE SOLOS E MATERIAIS GRANULARES EM CAMINHÃO BASCULANTE | D17: 100976 | E17: M3 | F17: 4500 | G17: =VLOOKUP(A17,CPU!$A$1:$N$4651,9) -> 8.71 | H17: =VLOOKUP(A17,CPU!$A$1:$N$4651,10) -> 10.64 | I17: 47880 | O17: 47880
A18: 8 | B18: 2.3 | C18: REGULARIZAÇÃO E COMPACTAÇÃO DO SUBLEITO | D18: 100576 | E18: M2 | F18: 30000 | G18: =VLOOKUP(A18,CPU!$A$1:$N$4651,9) -> 2.57 | H18: =VLOOKUP(A18,CPU!$A$1:$N$4651,10) -> 3.14 | I18: 94200 | O18: 94200
A19: 9 | B19: 2.4 | C19: EXECUÇÃO E COMPACTAÇÃO DE BASE E OU SUB BASE PARA PAVIMENTAÇÃO DE BICA CORRIDA - EXCLUSIVE CARGA E TRANSPORTE | D19: 96396 | E19: M3 | F19: 4500 | G19: =VLOOKUP(A19,CPU!$A$1:$N$4651,9) -> 122.6 | H19: =VLOOKUP(A19,CPU!$A$1:$N$4651,10) -> 149.74 | I19: 673830 | O19: 673830
A20: 10 | B20: 2.5 | C20: IMPRIMAÇÃO COM EMULSÃO ASFÁLTICA (EAI) | D20: 96401 | E20: M2 | F20: 30000 | G20: =VLOOKUP(A20,CPU!$A$1:$N$4651,9) -> 1.23 | H20: =VLOOKUP(A20,CPU!$A$1:$N$4651,10) -> 1.5 | I20: 45000 | O20: 45000
A21: 11 | B21: 2.6 | C21: PINTURA DE LIGAÇÃO COM EMULSÃO ASFÁLTICA RR-1C | D21: 96402 | E21: M2 | F21: 26400 | G21: =VLOOKUP(A21,CPU!$A$1:$N$4651,9) -> 1.01 | H21: =VLOOKUP(A21,CPU!$A$1:$N$4651,10) -> 1.23 | I21: 32472 | O21: 32472
A22: 12 | B22: 2.7 | C22: EXECUÇÃO DE PAVIMENTO COM APLICAÇÃO DE CONCRETO ASFÁLTICO USINADO A QUENTE (CBUQ), CAMADA DE ROLAMENTO - EXCLUSIVE TRANSPORTE | D22: 95995 | E22: M3 | F22: 800 | G22: =VLOOKUP(A22,CPU!$A$1:$N$4651,9) -> 129.6 | H22: =VLOOKUP(A22,CPU!$A$1:$N$4651,10) -> 158.29 | I22: 126632 | O22: 126632
A23: C | B23: 3 | C23: TRANSPORTE DE MATERIAIS | I23: =SUM(I24:I27) -> 149005.99 | O23: 149005.99
A24: 13 | B24: 3.1 | C24: TRANSPORTE COM CAMINHÃO BASCULANTE, EM VIA URBANA PAVIMENTADA | D24: 95427 | E24: M3XKM | F24: 119999.9958 | G24: =VLOOKUP(A24,CPU!$A$1:$N$4651,9) -> 0.73 | H24: =VLOOKUP(A24,CPU!$A$1:$N$4651,10) -> 0.89 | I24: =ROUND(F24*H24,2) -> 106800 | O24: 106800
A25: 13.5 | B25: 3.2 | C25: TRANSPORTE COM CAMINHÃO BASCULANTE, EM VIA URBANA EM REVESTIMENTO PRIMÁRIO | D25: 95426 | E25: M3XKM | F25: 18000 | G25: =VLOOKUP(A25,CPU!$A$1:$N$4651,9) -> 1.07 | H25: =VLOOKUP(A25,CPU!$A$1:$N$4651,10) -> 1.31 | I25: =ROUND(F25*H25,2) -> 23580
A26: 14 | B26: 3.3 | C26: TRANSPORTE COM CAMINHÃO CARROCERIA 9T, EM VIA URBANA PAVIMENTADA | D26: 100947 | E26: TXKM | F26: 1399.998031 | G26: =VLOOKUP(A26,CPU!$A$1:$N$4651,9) -> 2.12 | H26: =VLOOKUP(A26,CPU!$A$1:$N$4651,10) -> 2.59 | I26: =ROUND(F26*H26,2) -> 3625.99 | O26: =I26-K26 -> 3625.99
A27: 15 | B27: 3.4 | C27: TRANSPORTE COM CAMINHÃO TANQUE DE TRANSPORTE DE MATERIAL ASFÁLTICO DE 30000 L, EM VIA URBANA PAVIMENTADA (BDI DIFERENCIADO) | D27: 102331 | E27: TXKM | F27: 25000 | G27: =VLOOKUP(A27,CPU!$A$1:$N$4651,9) -> 0.52 | H27: =VLOOKUP(A27,CPU!$A$1:$N$4651,10) -> 0.6 | I27: =ROUND(F27*H27,2) -> 15000 | O27: 15000
A28: D | B28: 4 | C28: OBRAS COMPLEMENTARES | I28: =SUM(I29:I31) -> 688227.5 | O28: 688227.5
A29: 16 | B29: 4.1 | C29: GUIA (MEIO-FIO) E SARJETA CONJUGADOS DE CONCRETO, MOLDADA IN LOCO COM EXTRUSORA, 45 CM BASE (15 CM BASE DA GUIA + 30 CM BASE DA SARJETA) X 22 CM ALTURA | D29: 94267 | E29: M | F29: 8200 | G29: =VLOOKUP(A29,CPU!$A$1:$N$4651,9) -> 57.32 | H29: =VLOOKUP(A29,CPU!$A$1:$N$4651,10) -> 70.01 | I29: =ROUND(F29*H29,2) -> 574082 | O29: 574082
A30: 17 | B30: 4.2 | C30: FORNECIMENTO E INSTALAÇÃO DE PLACA DE SINALIZAÇÃO VIÁRIA - REGULAMENTAÇÃO OCTOGONAL (PARE) 0,60MX0,60M | D30: CPU.4 | E30: UN. | F30: 50 | G30: =VLOOKUP(A30,CPU!$A$1:$N$4651,9) -> 444.73 | H30: =VLOOKUP(A30,CPU!$A$1:$N$4651,10) -> 543.19 | I30: =ROUND(F30*H30,2) -> 27159.5 | O30: 27159.5
A31: 19 | B31: 4.3 | C31: PINTURA DE EIXO VIÁRIO SOBRE ASFALTO COM TINTA RETRORREFLETIVA A BASE DE RESINA ACRÍLICA COM MICROESFERAS DE VIDRO, APLICAÇÃO MECÂNICA COM DEMARCADORA AUTOPROPELIDA | D31: 102512 | E31: M | F31: 12199.99957 | G31: =VLOOKUP(A31,CPU!$A$1:$N$4651,9) -> 5.84 | H31: =VLOOKUP(A31,CPU!$A$1:$N$4651,10) -> 7.13 | I31: =ROUND(F31*H31,2) -> 86986 | O31: 86986
A32: E | B32: 5 | C32: FORNECIMENTOS - MATERIAL ASFÁLTICO (BDI DIFERENCIADO) | I32: =SUM(I33:I35) -> 1617824.12 | O32: 1617824.12
A33: 20 | B33: 5.1 | C33: AQUISIÇÃO DE EMULSÃO ASFÁLTICA PARA IMPRIMAÇÃO (EAI) - EXCLUSIVE TRANSPORTE | D33: CPU.6 | E33: T | F33: 42 | G33: =VLOOKUP(A33,CPU!$A$1:$N$4651,9) -> 2689.76 | H33: =VLOOKUP(A33,CPU!$A$1:$N$4651,10) -> 3093.22 | I33: =ROUND(F33*H33,2) -> 129915.24 | O33: 129915.24
A34: 21 | B34: 5.2 | C34: AQUISIÇÃO DE EMULSAO ASFALTICA CATIONICA RR-1C - EXCLUSIVE TRANSPORTE | D34: CPU.7 | E34: T | F34: 12.5 | G34: =VLOOKUP(A34,CPU!$A$1:$N$4651,9) -> 2706.7 | H34: =VLOOKUP(A34,CPU!$A$1:$N$4651,10) -> 3112.71 | I34: =ROUND(F34*H34,2) -> 38908.88 | O34: 38908.88
A35: 22 | B35: 5.3 | C35: AQUISIÇÃO DE CONCRETO BETUMINOSO USINADO A QUENTE (CBUQ) PARA PAVIMENTACAO ASFALTICA, PADRAO DNIT, FAIXA C, COM CAP 50/70 - EXCLUSIVE TRANSPORTE | D35: CPU.8 | E35: T | F35: 2100 | G35: =VLOOKUP(A35,CPU!$A$1:$N$4651,9) -> 600 | H35: =VLOOKUP(A35,CPU!$A$1:$N$4651,10) -> 690 | I35: =ROUND(F35*H35,2) -> 1449000 | O35: 1449000
B36: TOTAL GERAL DA OBRA COM BDI | I36: =SUM(I9,I15,I23,I28,I32) -> 3757477.57 | O36: 3757477.57
O37: 0

Sheet CPU
A1: 1 | B1: CODEVASF | E1: COMPOSIÇÃO DE PREÇO UNITÁRIO | I1: =H11 -> 17226.52 | J1: =H13 -> 21040.47 | K1: BDI CALCULADO: | M1: =ORÇAMENTO!I6 -> 0.2214
B2: OBRA: | C2: =ORÇAMENTO!C5 -> MIRABELA - PAVIMENTAÇÃO ASFÁLTICA EM CBUQ - VIAS DIVERSAS (ITEM 2) | G2: DATA: | H2: =ORÇAMENTO!C6 -> OUTUBRO / 2023 | K2: BDI DIFERENCIADO: | M2: ='BDI FORN'!D31/100 -> 0.15
B3: SERVIÇO: | C3: =VLOOKUP(A1,ORÇAMENTO!A10:I29,3) -> MOBILIZAÇÃO E DESMOBILIZAÇÃO | E3: Referência: | F3: CPU.1 | G3: UNIDADE: | H3: =VLOOKUP(A1,ORÇAMENTO!A10:I29,5) -> GL
B5: TIPO ITEM | C5: CODIGO ITEM | D5: DESCRIÇÃO ITEM | E5: UNIDADE ITEM | F5: COEFICIENTE | G5: PRECO UNITARIO | H5: CUSTO TOTAL
B6: COMPOSICAO | C6: 89876 | D6: CAMINHÃO BASCULANTE 14 M3, COM CAVALO MECÂNICO DE CAPACIDADE MÁXIMA DE TRAÇÃO COMBINADO DE 36000 KG, POTÊNCIA 286 CV, INCLUSIVE SEMIREBOQUE COM CAÇAMBA METÁLICA | E6: CHP DIURNO. | F6: 8 | G6: 316.13 | H6: =ROUNDDOWN(F6*G6,2) -> 2529.04
B7: COMPOSICAO | C7: 89877 | D7: CAMINHÃO BASCULANTE 14 M3, COM CAVALO MECÂNICO DE CAPACIDADE MÁXIMA DE TRAÇÃO COMBINADO DE 36000 KG, POTÊNCIA 286 CV, INCLUSIVE SEMIREBOQUE TRAÇÃO | E7: CHI DIURNO. | F7: 8 | G7: 89.75 | H7: =ROUNDDOWN(F7*G7,2) -> 718
B8: COMPOSICAO | C8: 5914640 | D8: TRANSPORTE COM CAVALO MECÂNICO COM SEMIRREBOQUE COM CAPACIDADE DE 30 T - RODOVIA PAVIMENTADA | E8: T.KM | F8: 8707 | G8: 0.58 | H8: =ROUNDDOWN(F8*G8,2) -> 5050.06
B9: COMPOSIÇÃO | C9: 88316 | D9: SERVENTE COM ENCARGOS COMPLEMENTARES | E9: H | F9: 16 | G9: 19.76 | H9: =ROUNDDOWN(F9*G9,2) -> 316.16
B10: PRODUÇÃO DA EQUIPE | E10: 0.5 | F10: CUSTO | H10: =SUM(H6:H9) -> 8613.26
B11: TOTAL | H11: =H10/E10 -> 17226.52 | I11: OK
B12: BDI % | H12: =1+$M$1 -> 1.2214
B13: TOTAL DO SERVIÇO - R$ | H13: =ROUND(H11*H12,2) -> 21040.47
A15: =A1+1 -> 2 | B15: CODEVASF | E15: COMPOSIÇÃO DE PREÇO UNITÁRIO | I15: =H30 -> 178309.38 | J15: =H32 -> 217787.08
B16: OBRA: | C16: =$C$2 -> MIRABELA - PAVIMENTAÇÃO ASFÁLTICA EM CBUQ - VIAS DIVERSAS (ITEM 2) | G16: DATA: | H16: =$H$2 -> OUTUBRO / 2023
B17: SERVIÇO: | C17: =VLOOKUP(A15,ORÇAMENTO!$A$10:$I$29,3) -> ADMINISTRAÇÃO LOCAL | E17: SINAPI | F17: CPU.2 | G17: UNIDADE: | H17: =VLOOKUP(A15,ORÇAMENTO!$A$10:$I$29,5) -> GL
B19: TIPO ITEM | C19: CODIGO ITEM | D19: DESCRIÇÃO ITEM | E19: UNIDADE ITEM | F19: COEFICIENTE | G19: PRECO UNITARIO | H19: CUSTO TOTAL
B20: INSUMO | C20: 14250 | D20: ENERGIA ELÉTRICA | E20: kwh | F20: 60 | G20: 0.94 | H20: =ROUNDDOWN(F20*G20,2) -> 56.4
B21: INSUMO | C21: 44480 | D21: TARIFA FORNECIMENTO DE ÁGUA/ESGOTO | E21: M3 | F21: 6 | G21: 17.78 | H21: 106.68
B22: COTAÇÃO | C22: MERC. | D22: TELEFONE (PLANO CONTROLE) | E22: UNID | F22: 2 | G22: 59.9 | H22: 119.8
B23: INSUMO | C23: ED-50155 SEINFRA | D23: BANHEIRO QUÍMICO 110 X 120 X 230 CM COM MANUTENÇÃO (CONSIDERANDO OBRAS SIMULTÂNEAS) | E23: MÊS | F23: 2 | G23: 820 | H23: 1640
B24: COMPOSICAO | C24: 90777 | D24: Engenheiro Civil Júnior com encargos complementares | E24: H | F24: 55 | G24: 114.12 | H24: 6276.6
B25: COMPOSICAO | C25: 90776 | D25: Encarregado Geral com encargos complementares | E25: H | F25: 220 | G25: 57.73 | H25: 12700.6
B26: COMPOSICAO | C26: 88321 | D26: Tecnico de Laboratório com encargos complementares | E26: H | F26: 110 | G26: 45.45 | H26: 4999.5
B27: COMPOSICAO | C27: 100309 | D27: Tecnico em Segurança do Trabalho com encargos complementares | E27: H | F27: 55 | G27: 45.71 | H27: 2514.05
B28: COMPOSICAO | C28: 90772 | D28: Auxiliar de escritório com encargos complementares | E28: H | F28: 55 | G28: 23.72 | H28: 1304.6
B29: PRODUÇÃO DA EQUIPE | E29: =1/6 -> 0.1666666667 | F29: CUSTO | H29: =SUM(H20:H28) -> 29718.23
B30: TOTAL | H30: =ROUND(H29/E29,2) -> 178309.38 | I30: OK
B31: BDI % | H31: =1+$M$1 -> 1.2214
B32: TOTAL DO SERVIÇO - R$ | H32: =ROUND(H30*H31,2) -> 217787.08
A34: =A15+1 -> 3 | B34: CODEVASF | E34: COMPOSIÇÃO DE PREÇO UNITÁRIO | I34: =H44 -> 13900.5 | J34: =H46 -> 16978.07
B35: OBRA: | C35: =$C$2 -> MIRABELA - PAVIMENTAÇÃO ASFÁLTICA EM CBUQ - VIAS DIVERSAS (ITEM 2) | G35: DATA: | H35: =$H$2 -> OUTUBRO / 2023
B36: SERVIÇO: | C36: =VLOOKUP(A34,ORÇAMENTO!$A$10:$I$29,3) -> CANTEIRO DE OBRAS | E36: SINAPI | F36: =VLOOKUP(A34,ORÇAMENTO!$A$10:$I$29,4) -> CPU.3 | G36: UNIDADE: | H36: =VLOOKUP(A34,ORÇAMENTO!$A$10:$I$29,5) -> GL
B38: TIPO ITEM | C38: CODIGO ITEM | D38: DESCRIÇÃO ITEM | E38: UNIDADE ITEM | F38: COEFICIENTE | G38: PRECO UNITARIO | H38: CUSTO TOTAL
B39: INSUMO | C39: 10775 | D39: LOCACAO DE CONTAINER COM 1 SANITARIO, PARA ESCRITORIO,COMPLETO, SEM DIVISORIAS INTERNAS | E39: MÊS | F39: 6 | G39: 975 | H39: =ROUNDDOWN(F39*G39,2) -> 5850
B40: INSUMO | C40: 10779 | D40: LOCACAO DE CONTAINER P/ SANITARIO, C/ 5 BACIAS, 1 LAVATORIO E 4 MICTORIOS | E40: MÊS | F40: 6 | G40: 1218.75 | H40: 7312.5
B41: INSUMO | C41: 37525 | D41: TELA PLASTICA TECIDA LISTRADA BRANCA E LARANJA, TIPO GUARDA CORPO, EM POLIETILENO MONOFILADO, ROLO 1,20 X 50 M (L X C) | E41: M | F41: 200 | G41: 3.69 | H41: 738
H42: 0
B43: PRODUÇÃO DA EQUIPE | E43: 1 | F43: CUSTO | H43: =SUM(H39:H42) -> 13900.5
B44: TOTAL | H44: =H43/E43 -> 13900.5 | I44: OK
B45: BDI % | H45: =1+$M$1 -> 1.2214
B46: TOTAL DO SERVIÇO - R$ | H46: =ROUND(H44*H45,2) -> 16978.07
A48: =A34+1 -> 4 | B48: CODEVASF | E48: COMPOSIÇÃO DE PREÇO UNITÁRIO | I48: =H62 -> 340.5 | J48: =H64 -> 415.89
B49: OBRA: | C49: =$C$2 -> MIRABELA - PAVIMENTAÇÃO ASFÁLTICA EM CBUQ - VIAS DIVERSAS (ITEM 2) | G49: DATA: | H49: =$H$2 -> OUTUBRO / 2023
B50: SERVIÇO: | C50: =VLOOKUP(A48,ORÇAMENTO!$A$10:$I$29,3) -> PLACA DE OBRA EM CHAPA DE AÇO GALVANIZADO | E50: SINAPI | F50: =VLOOKUP(A48,ORÇAMENTO!$A$10:$I$29,4) -> 103689 | G50: UNIDADE: | H50: =VLOOKUP(A48,ORÇAMENTO!$A$10:$I$29,5) -> M2
B52: TIPO ITEM | C52: CODIGO ITEM | D52: DESCRIÇÃO ITEM | E52: UNIDADE ITEM | F52: COEFICIENTE | G52: PRECO UNITARIO | H52: CUSTO TOTAL
B53: INSUMO | C53: 4509 | D53: SARRAFO *2,5 X 10* CM EM PINUS, MISTA OU EQUIVALENTE DA REGIAO - BRUTA | E53: M | F53: 3,2083000 | G53: 4,41 | H53: =ROUNDDOWN(F53*G53,2) -> 14.14
B54: INSUMO | C54: 4813 | D54: PLACA DE OBRA (PARA CONSTRUCAO CIVIL) EM CHAPA GALVANIZADA *N. 22*, ADESIVADA, DE *2,4 X 1,2* M (SEM POSTES PARA FIXACAO) | E54: M2 | F54: 1,0000000 | G54: 250,00 | H54: 250
B55: INSUMO | C55: 5065 | D55: PREGO DE ACO POLIDO COM CABECA 10 X 10 | E55: KG | F55: 0,0113000 | G55: 36,57 | H55: 0.41
B56: INSUMO | C56: 5069 | D56: PREGO DE ACO POLIDO COM CABECA 17 X 27 | E56: KG | F56: 0,0132000 | G56: 19,59 | H56: 0.25
B57: COMPOSICAO | C57: 88262 | D57: CARPINTEIRO DE FORMAS COM ENCARGOS COMPLEMENTARES | E57: H | F57: 0,3729000 | G57: 27,05 | H57: 10.08
B58: COMPOSICAO | C58: 88316 | D58: SERVENTE COM ENCARGOS COMPLEMENTARES | E58: H | F58: 1,1186000 | G58: 19,76 | H58: 22.1
B59: COMPOSICAO | C59: 4115 | D59: MADEIRA ROLICA TRATADA, D = 12 A 15 CM, H = 3,00 M, EM EUCALIPTO OU EQUIVALENTE | E59: M | F59: 2 | G59: 21.76 | H59: 43.52
H60: 0
B61: PRODUÇÃO DA EQUIPE | E61: 1 | F61: CUSTO | H61: =SUM(H53:H60) -> 340.5
B62: TOTAL | H62: =H61/E61 -> 340.5 | I62: OK
B63: BDI % | H63: =1+$M$1 -> 1.2214
B64: TOTAL DO SERVIÇO - R$ | H64: =ROUND(H62*H63,2) -> 415.89
A66: =A48+1 -> 5 | B66: CODEVASF | E66: COMPOSIÇÃO DE PREÇO UNITÁRIO | I66: =H78 -> 0.33 | J66: =H80 -> 0.4
B67: OBRA: | C67: =$C$2 -> MIRABELA - PAVIMENTAÇÃO ASFÁLTICA EM CBUQ - VIAS DIVERSAS (ITEM 2) | G67: DATA: | H67: =$H$2 -> OUTUBRO / 2023
B68: SERVIÇO: | C68: =VLOOKUP(A66,ORÇAMENTO!$A$10:$I$29,3) -> SERVIÇOS TOPOGRÁFICOS PARA PAVIMENTAÇÃO, INCLUSIVE NOTA DE SERVIÇO, ACOMPANHAMENTO E GREIDE | E68: SINAPI | F68: =VLOOKUP(A66,ORÇAMENTO!$A$10:$I$29,4) -> 78472 | G68: UNIDADE: | H68: =VLOOKUP(A66,ORÇAMENTO!$A$10:$I$29,5) -> M2
B70: TIPO ITEM | C70: CODIGO ITEM | D70: DESCRIÇÃO ITEM | E70: UNIDADE ITEM | F70: COEFICIENTE | G70: PRECO UNITARIO | H70: CUSTO TOTAL
B71: COMPOSICAO | C71: 88253 | D71: AUXILIAR DE TOPÓGRAFO COM ENCARGOS COMPLEMENTARES | E71: H | F71: 0.0025 | G71: 21.57 | H71: =ROUNDDOWN(F71*G71,2) -> 0.05
B72: COMPOSICAO | C72: 88288 | D72: NIVELADOR COM ENCARGOS COMPLEMENTARES | E72: H | F72: 0.0025 | G72: 26.99 | H72: =ROUNDDOWN(F72*G72,2) -> 0.06
B73: COMPOSICAO | C73: 88316 | D73: SERVENTE COM ENCARGOS COMPLEMENTARES | E73: H | F73: 0.0075 | G73: 19.76 | H73: 0.14
B74: COMPOSICAO | C74: 88597 | D74: DESENHISTA DETALHISTA COM ENCARGOS COMPLEMENTARES | E74: H | F74: 0.002 | G74: 29.72 | H74: 0.05
B75: COMPOSICAO | C75: 92145 | D75: CAMINHONETE CABINE SIMPLES COM MOTOR 1.6 FLEX, CÂMBIO MANUAL, POTÊNCIA 101/104 CV, 2 PORTAS | E75: CHP | F75: 0.0005 | G75: 74.75 | H75: 0.03
H76: =ROUNDDOWN(F76*G76,2) -> 0
B77: PRODUÇÃO DA EQUIPE | E77: 1 | F77: CUSTO | H77: =SUM(H71:H76) -> 0.33
B78: TOTAL | H78: =H77/E77 -> 0.33 | I78: OK
B79: BDI % | H79: =1+$M$1 -> 1.2214
B80: TOTAL DO SERVIÇO - R$ | H80: =ROUND(H78*H79,2) -> 0.4
A82: =A66+1 -> 6 | B82: CODEVASF | E82: COMPOSIÇÃO DE PREÇO UNITÁRIO | I82: =H91 -> 2.2 | J82: =H93 -> 2.69
B83: OBRA: | C83: =$C$2 -> MIRABELA - PAVIMENTAÇÃO ASFÁLTICA EM CBUQ - VIAS DIVERSAS (ITEM 2) | G83: DATA: | H83: =$H$2 -> OUTUBRO / 2023
B84: SERVIÇO: | C84: =VLOOKUP(A82,ORÇAMENTO!$A$10:$I$29,3) -> ESCAVAÇÃO HORIZONTAL EM SOLO DE 1A CATEGORIA | E84: SINAPI | F84: =VLOOKUP(A82,ORÇAMENTO!$A$10:$I$29,4) -> 101116 | G84: UNIDADE: | H84: =VLOOKUP(A82,ORÇAMENTO!$A$10:$I$29,5) -> M3
B86: TIPO ITEM | C86: CODIGO ITEM | D86: DESCRIÇÃO ITEM | E86: UNIDADE ITEM | F86: COEFICIENTE | G86: PRECO UNITARIO | H86: CUSTO TOTAL
B87: COMPOSICAO | C87: 5847 | D87: TRATOR DE ESTEIRAS, POTÊNCIA 170 HP, PESO OPERACIONAL 19 T, CAÇAMBA 5,2 M3 | E87: CHP | F87: 0,0048000 | G87: 253,93 | H87: =ROUNDDOWN(F87*G87,2) -> 1.21
B88: COMPOSICAO | C88: 5849 | D88: TRATOR DE ESTEIRAS, POTÊNCIA 170 HP, PESO OPERACIONAL 19 T, CAÇAMBA 5,2 M3 | E88: CHI | F88: 0,0082000 | G88: 90,40 | H88: =ROUNDDOWN(F88*G88,2) -> 0.74
B89: COMPOSICAO | C89: 88316 | D89: SERVENTE COM ENCARGOS COMPLEMENTARES | E89: H | F89: 0,0131000 | G89: 19,76 | H89: =ROUNDDOWN(F89*G89,2) -> 0.25
B90: PRODUÇÃO DA EQUIPE | E90: 1 | F90: CUSTO | H90: =SUM(H87:H89) -> 2.2
B91: TOTAL | H91: =H90/E90 -> 2.2 | I91: OK
B92: BDI % | H92: =1+$M$1 -> 1.2214
B93: TOTAL DO SERVIÇO - R$ | H93: =ROUND(H91*H92,2) -> 2.69
A95: 7 | B95: CODEVASF | E95: COMPOSIÇÃO DE PREÇO UNITÁRIO | I95: =H105 -> 8.71 | J95: =H107 -> 10.64
B96: OBRA: | C96: =$C$2 -> MIRABELA - PAVIMENTAÇÃO ASFÁLTICA EM CBUQ - VIAS DIVERSAS (ITEM 2) | G96: DATA: | H96: =$H$2 -> OUTUBRO / 2023
B97: SERVIÇO: | C97: =VLOOKUP(A95,ORÇAMENTO!$A$10:$I$29,3) -> CARGA, MANOBRA E DESCARGA DE SOLOS E MATERIAIS GRANULARES EM CAMINHÃO BASCULANTE | E97: SINAPI | F97: =VLOOKUP(A95,ORÇAMENTO!$A$10:$I$29,4) -> 100976 | G97: UNIDADE: | H97: =VLOOKUP(A95,ORÇAMENTO!$A$10:$I$29,5) -> M3
B99: TIPO ITEM | C99: CODIGO ITEM | D99: DESCRIÇÃO ITEM | E99: UNIDADE ITEM | F99: COEFICIENTE | G99: PRECO UNITARIO | H99: CUSTO TOTAL
B100: COMPOSICAO | C100: 5940 | D100: PÁ CARREGADEIRA SOBRE RODAS, POTÊNCIA LÍQUIDA 128 HP, CAPACIDADE DA CAÇAMBA 1,7 A 2,8 M3, PESO OPERACIONAL 11632 KG | E100: CHP | F100: 0,0083000 | G100: 217,72 | H100: =ROUNDDOWN(F100*G100,2) -> 1.8
B101: COMPOSICAO | C101: 5942 | D101: PÁ CARREGADEIRA SOBRE RODAS, POTÊNCIA LÍQUIDA 128 HP, CAPACIDADE DA CAÇAMBA 1,7 A 2,8 M3, PESO OPERACIONAL 11632 KG | E101: CHI | F101: 0,0074000 | G101: 95,85 | H101: =ROUNDDOWN(F101*G101,2) -> 0.7
B102: COMPOSICAO | C102: 89883 | D102: CAMINHÃO BASCULANTE 18 M3, COM CAVALO MECÂNICO DE CAPACIDADE MÁXIMA DE TRAÇÃO COMBINADO DE 45000 KG, POTÊNCIA 330 CV, INCLUSIVE SEMIREBOQUE COM CAÇAMBA METÁLICA | E102: CHP | F102: 0,0153000 | G102: 348,45 | H102: =ROUNDDOWN(F102*G102,2) -> 5.33
B103: COMPOSICAO | C103: 89884 | D103: CAMINHÃO BASCULANTE 18 M3, COM CAVALO MECÂNICO DE CAPACIDADE MÁXIMA DE TRAÇÃO COMBINADO DE 45000 KG, POTÊNCIA 330 CV, INCLUSIVE SEMIREBOQUE COM CAÇAMBA METÁLICA | E103: CHI | F103: 0,0095000 | G103: 93,65 | H103: =ROUNDDOWN(F103*G103,2) -> 0.88
B104: PRODUÇÃO DA EQUIPE | E104: 1 | F104: CUSTO | H104: =SUM(H100:H103) -> 8.71
B105: TOTAL | H105: =H104/E104 -> 8.71 | I105: OK
B106: BDI % | H106: =1+$M$1 -> 1.2214
B107: TOTAL DO SERVIÇO - R$ | H107: =ROUND(H105*H106,2) -> 10.64
A109: 8 | B109: CODEVASF | E109: COMPOSIÇÃO DE PREÇO UNITÁRIO | I109: =H123 -> 2.57 | J109: =H125 -> 3.14
B110: OBRA: | C110: =$C$2 -> MIRABELA - PAVIMENTAÇÃO ASFÁLTICA EM CBUQ - VIAS DIVERSAS (ITEM 2) | G110: DATA: | H110: =$H$2 -> OUTUBRO / 2023
B111: SERVIÇO: | C111: =VLOOKUP(A109,ORÇAMENTO!$A$10:$I$29,3) -> REGULARIZAÇÃO E COMPACTAÇÃO DO SUBLEITO | E111: SINAPI | F111: =VLOOKUP(A109,ORÇAMENTO!$A$10:$I$29,4) -> 100576 | G111: UNIDADE: | H111: M2
B113: TIPO ITEM | C113: CODIGO ITEM | D113: DESCRIÇÃO ITEM | E113: UNIDADE ITEM | F113: COEFICIENTE | G113: PRECO UNITARIO | H113: CUSTO TOTAL
B114: COMPOSICAO | C114: 5901 | D114: CAMINHÃO PIPA 10.000 L TRUCADO, PESO BRUTO TOTAL 23.000 KG, CARGA ÚTIL MÁXIMA 15.935 KG, DISTÂNCIA ENTRE EIXOS 4,8 M, POTÊNCIA 230 CV, INCLUSIVE TANQUE DE AÇO PARA TRANSPORTE DE ÁGUA | E114: CHP | F114: 0,0010000 | G114: 294,94 | H114: =ROUNDDOWN(F114*G114,2) -> 0.29
B115: COMPOSICAO | C115: 5903 | D115: CAMINHÃO PIPA 10.000 L TRUCADO, PESO BRUTO TOTAL 23.000 KG, CARGA ÚTIL MÁXIMA 15.935 KG, DISTÂNCIA ENTRE EIXOS 4,8 M, POTÊNCIA 230 CV, INCLUSIVE TANQUE DE AÇO PARA TRANSPORTE DE ÁGUA | E115: CHI | F115: 0,0070000 | G115: 72,55 | H115: 0.5
B116: COMPOSICAO | C116: 5932 | D116: MOTONIVELADORA POTÊNCIA BÁSICA LÍQUIDA (PRIMEIRA MARCHA) 125 HP, PESO BRUTO 13032 KG, LARGURA DA LÂMINA DE 3,7 M | E116: CHP | F116: 0,0001000 | G116: 262,71 | H116: 0.02
B117: COMPOSICAO | C117: 5934 | D117: MOTONIVELADORA POTÊNCIA BÁSICA LÍQUIDA (PRIMEIRA MARCHA) 125 HP, PESO BRUTO 13032 KG, LARGURA DA LÂMINA DE 3,7 M | E117: CHI | F117: 0,0080000 | G117: 109,40 | H117: 0.87
B118: COMPOSICAO | C118: 73436 | D118: ROLO COMPACTADOR VIBRATÓRIO PÉ DE CARNEIRO PARA SOLOS, POTÊNCIA 80 HP, PESO OPERACIONAL SEM/COM LASTRO 7,4 / 8,8 T, LARGURA DE TRABALHO 1,68 M | E118: CHP | F118: 0,0020000 | G118: 163,19 | H118: 0.32
B119: COMPOSICAO | C119: 88316 | D119: SERVENTE COM ENCARGOS COMPLEMENTARES | E119: H | F119: 0,0080000 | G119: 19,76 | H119: 0.15
B120: COMPOSICAO | C120: 93244 | D120: ROLO COMPACTADOR VIBRATÓRIO PÉ DE CARNEIRO PARA SOLOS, POTÊNCIA 80 HP, PESO OPERACIONAL SEM/COM LASTRO 7,4 / 8,8 T, LARGURA DE TRABALHO 1,68 M | E120: CHI | F120: 0,0060000 | G120: 71,18 | H120: 0.42
B122: PRODUÇÃO DA EQUIPE | E122: 1 | F122: CUSTO | H122: =SUM(H114:H121) -> 2.57
B123: TOTAL | H123: =H122/E122 -> 2.57 | I123: OK
B124: BDI % | H124: =1+$M$1 -> 1.2214
B125: TOTAL DO SERVIÇO - R$ | H125: =ROUND(H123*H124,2) -> 3.14
A127: 9 | B127: CODEVASF | E127: COMPOSIÇÃO DE PREÇO UNITÁRIO | I127: =H144 -> 122.6 | J127: =H146 -> 149.74
B128: OBRA: | C128: =$C$2 -> MIRABELA - PAVIMENTAÇÃO ASFÁLTICA EM CBUQ - VIAS DIVERSAS (ITEM 2) | G128: DATA: | H128: =$H$2 -> OUTUBRO / 2023
B129: SERVIÇO: | C129: =VLOOKUP(A127,ORÇAMENTO!$A$10:$I$29,3) -> EXECUÇÃO E COMPACTAÇÃO DE BASE E OU SUB BASE PARA PAVIMENTAÇÃO DE BICA CORRIDA - EXCLUSIVE CARGA E TRANSPORTE | E129: SINAPI | F129: =VLOOKUP(A127,ORÇAMENTO!$A$10:$I$29,4) -> 96396 | G129: UNIDADE: | H129: =VLOOKUP(A127,ORÇAMENTO!$A$10:$I$29,5) -> M3
B131: TIPO ITEM | C131: CODIGO ITEM | D131: DESCRIÇÃO ITEM | E131: UNIDADE ITEM | F131: COEFICIENTE | G131: PRECO UNITARIO | H131: CUSTO TOTAL
B132: COMPOSICAO | C132: 5684 | D132: ROLO COMPACTADOR VIBRATÓRIO DE UM CILINDRO AÇO LISO, POTÊNCIA 80 HP, PESO OPERACIONAL MÁXIMO 8,1 T, IMPACTO DINÂMICO 16,15 / 9,5 T, LARGURA DE TRABALHO 1,68 M | E132: CHP | F132: 0,0090000 | G132: 159,98 | H132: =ROUNDDOWN(F132*G132,2) -> 1.43
B133: COMPOSICAO | C133: 5685 | D133: ROLO COMPACTADOR VIBRATÓRIO DE UM CILINDRO AÇO LISO, POTÊNCIA 80 HP, PESO OPERACIONAL MÁXIMO 8,1 T, IMPACTO DINÂMICO 16,15 / 9,5 T, LARGURA DE TRABALHO 1,68 M | E133: CHI | F133: 0,0210000 | G133: 69,53 | H133: 1.46
B134: COMPOSICAO | C134: 5901 | D134: CAMINHÃO PIPA 10.000 L TRUCADO, PESO BRUTO TOTAL 23.000 KG, CARGA ÚTIL MÁXIMA 15.935 KG, DISTÂNCIA ENTRE EIXOS 4,8 M, POTÊNCIA 230 CV, INCLUSIVE TANQUE DE AÇO PARA TRANSPORTE DE ÁGUA | E134: CHP | F134: 0,0020000 | G134: 294,94 | H134: 0.58
B135: COMPOSICAO | C135: 5903 | D135: CAMINHÃO PIPA 10.000 L TRUCADO, PESO BRUTO TOTAL 23.000 KG, CARGA ÚTIL MÁXIMA 15.935 KG, DISTÂNCIA ENTRE EIXOS 4,8 M, POTÊNCIA 230 CV, INCLUSIVE TANQUE DE AÇO PARA TRANSPORTE DE ÁGUA | E135: CHI | F135: 0,0280000 | G135: 72,55 | H135: 2.03
B136: COMPOSICAO | C136: 5932 | D136: MOTONIVELADORA POTÊNCIA BÁSICA LÍQUIDA (PRIMEIRA MARCHA) 125 HP, PESO BRUTO 13032 KG, LARGURA DA LÂMINA DE 3,7 M | E136: CHP | F136: 0,0080000 | G136: 262,71 | H136: 2.1
B137: COMPOSICAO | C137: 5934 | D137: MOTONIVELADORA POTÊNCIA BÁSICA LÍQUIDA (PRIMEIRA MARCHA) 125 HP, PESO BRUTO 13032 KG, LARGURA DA LÂMINA DE 3,7 M | E137: CHI | F137: 0,0220000 | G137: 109,40 | H137: 2.4
B138: COMPOSICAO | C138: 88316 | D138: SERVENTE COM ENCARGOS COMPLEMENTARES | E138: H | F138: 0,0300000 | G138: 19,76 | H138: 0.59
B139: INSUMO | C139: 4748 | D139: PEDRA BRITADA OU BICA CORRIDA, NAO CLASSIFICADA (POSTO PEDREIRA/FORNECEDOR, SEM FRETE) | E139: M3 | F139: 1,0000000 | G139: 108.65 | H139: 108.65
B140: COMPOSICAO | C140: 96463 | D140: ROLO COMPACTADOR DE PNEUS, ESTATICO, PRESSAO VARIAVEL, POTENCIA 110 HP, PESO SEM/COM LASTRO 10,8/27 T, LARGURA DE ROLAGEM 2,30 M | E140: CHP | F140: 0,0040000 | G140: 218,21 | H140: 0.87
B141: COMPOSICAO | C141: 96464 | D141: ROLO COMPACTADOR DE PNEUS, ESTATICO, PRESSAO VARIAVEL, POTENCIA 110 HP, PESO SEM/COM LASTRO 10,8/27 T, LARGURA DE ROLAGEM 2,30 M | E141: CHI | F141: 0,0260000 | G141: 95,83 | H141: 2.49
H142: 0
B143: PRODUÇÃO DA EQUIPE | E143: 1 | F143: CUSTO | H143: =SUM(H132:H142) -> 122.6
B144: TOTAL | H144: =H143/E143 -> 122.6 | I144: OK
B145: BDI % | H145: =1+$M$1 -> 1.2214
B146: TOTAL DO SERVIÇO - R$ | H146: =ROUND(H144*H145,2) -> 149.74
A148: 10 | B148: CODEVASF | E148: COMPOSIÇÃO DE PREÇO UNITÁRIO | I148: =H163 -> 1.23 | J148: =H165 -> 1.5
B149: OBRA: | C149: =$C$2 -> MIRABELA - PAVIMENTAÇÃO ASFÁLTICA EM CBUQ - VIAS DIVERSAS (ITEM 2) | G149: DATA: | H149: =$H$2 -> OUTUBRO / 2023
B150: SERVIÇO: | C150: =VLOOKUP(A148,ORÇAMENTO!$A$10:$I$29,3) -> IMPRIMAÇÃO COM EMULSÃO ASFÁLTICA (EAI) | E150: SINAPI | F150: =VLOOKUP(A148,ORÇAMENTO!$A$10:$I$29,4) -> 96401 | G150: UNIDADE: | H150: =VLOOKUP(A148,ORÇAMENTO!$A$10:$I$29,5) -> M2
B152: TIPO ITEM | C152: CODIGO ITEM | D152: DESCRIÇÃO ITEM | E152: UNIDADE ITEM | F152: COEFICIENTE | G152: PRECO UNITARIO | H152: CUSTO TOTAL
B153: COMPOSICAO | C153: 5839 | D153: VASSOURA MECÂNICA REBOCÁVEL COM ESCOVA CILÍNDRICA, LARGURA ÚTIL DE VARRIMENTO DE 2,44 M | E153: CHP | F153: 0,0020000 | G153: 10.3 | H153: =ROUNDDOWN(F153*G153,2) -> 0.02
B154: COMPOSICAO | C154: 5841 | D154: VASSOURA MECÂNICA REBOCÁVEL COM ESCOVA CILÍNDRICA, LARGURA ÚTIL DE VARRIMENTO DE 2,44 M | E154: CHI | F154: 0,0040000 | G154: 5.18 | H154: 0.02
B155: INSUMO | C155: ANP | D155: EMULSÃO ASFÁLTICA PARA IMPRIMAÇÃO (FORNECIMENTO COM BDI DIFERENCIADO) | E155: T | F155: =1.3/1000 -> 0.0013 | H155: 0
B156: COMPOSICAO | C156: 83362 | D156: ESPARGIDOR DE ASFALTO PRESSURIZADO, TANQUE 6 M3 COM ISOLAÇÃO TÉRMICA, AQUECIDO COM 2 MAÇARICOS, COM BARRA ESPARGIDORA 3,60 M, MONTADO SOBRE CAMINHÃO TOCO, PBT 14.300 KG, POTÊNCIA 185 CV | E156: CHP | F156: 0,0010000 | G156: 256.34 | H156: 0.25
B157: COMPOSICAO | C157: 88316 | D157: SERVENTE COM ENCARGOS COMPLEMENTARES | E157: H | F157: 0,0060000 | G157: 19.76 | H157: 0.11
B158: COMPOSICAO | C158: 89035 | D158: TRATOR DE PNEUS, POTÊNCIA 85 CV, TRAÇÃO 4X4, PESO COM LASTRO DE 4.675 KG | E158: CHP | F158: 0,0020000 | G158: 135.08 | H158: 0.27
B159: COMPOSICAO | C159: 89036 | D159: TRATOR DE PNEUS, POTÊNCIA 85 CV, TRAÇÃO 4X4, PESO COM LASTRO DE 4.675 KG | E159: CHI | F159: 0,0040000 | G159: 56.48 | H159: 0.22
B160: COMPOSICAO | C160: 91486 | D160: ESPARGIDOR DE ASFALTO PRESSURIZADO, TANQUE 6 M3 COM ISOLAÇÃO TÉRMICA, AQUECIDO COM 2 MAÇARICOS, COM BARRA ESPARGIDORA 3,60 M, MONTADO SOBRE CAMINHÃO TOCO, PBT 14.300 KG, POTÊNCIA 185 CV | E160: CHI | F160: 0,0050000 | G160: 68.43 | H160: 0.34
H161: 0
B162: PRODUÇÃO DA EQUIPE | E162: 1 | F162: CUSTO | H162: =SUM(H153:H161) -> 1.23
B163: TOTAL | H163: =H162/E162 -> 1.23 | I163: OK
B164: BDI % | H164: =1+$M$1 -> 1.2214
B165: TOTAL DO SERVIÇO - R$ | H165: =ROUND(H163*H164,2) -> 1.5
A167: 11 | B167: CODEVASF | E167: COMPOSIÇÃO DE PREÇO UNITÁRIO | I167: =H182 -> 1.01 | J167: =H184 -> 1.23
B168: OBRA: | C168: =$C$2 -> MIRABELA - PAVIMENTAÇÃO ASFÁLTICA EM CBUQ - VIAS DIVERSAS (ITEM 2) | G168: DATA: | H168: =$H$2 -> OUTUBRO / 2023
B169: SERVIÇO: | C169: =VLOOKUP(A167,ORÇAMENTO!$A$10:$I$29,3) -> PINTURA DE LIGAÇÃO COM EMULSÃO ASFÁLTICA RR-1C | E169: SINAPI | F169: =VLOOKUP(A167,ORÇAMENTO!$A$10:$I$29,4) -> 96402 | G169: UNIDADE: | H169: M2
B171: TIPO ITEM | C171: CODIGO ITEM | D171: DESCRIÇÃO ITEM | E171: UNIDADE ITEM | F171: COEFICIENTE | G171: PRECO UNITARIO | H171: CUSTO TOTAL
B172: COMPOSICAO | C172: 5839 | D172: VASSOURA MECÂNICA REBOCÁVEL COM ESCOVA CILÍNDRICA, LARGURA ÚTIL DE VARRIMENTO DE 2,44 M | E172: CHP | F172: 0,0020000 | G172: 10.3 | H172: =ROUNDDOWN(F172*G172,2) -> 0.02
B173: COMPOSICAO | C173: 5841 | D173: VASSOURA MECÂNICA REBOCÁVEL COM ESCOVA CILÍNDRICA, LARGURA ÚTIL DE VARRIMENTO DE 2,44 M | E173: CHI | F173: 0,0040000 | G173: 5.18 | H173: 0.02
B174: INSUMO | C174: ANP | D174: EMULSAO ASFALTICA CATIONICA RR-2C PARA USO EM PAVIMENTACAO ASFALTICA (COLETADO CAIXA NA ANP ACRESCIDO DE ICMS) | E174: KG | F174: 0,4500000 | H174: 0
B175: COMPOSICAO | C175: 83362 | D175: ESPARGIDOR DE ASFALTO PRESSURIZADO, TANQUE 6 M3 COM ISOLAÇÃO TÉRMICA, AQUECIDO COM 2 MAÇARICOS, COM BARRA ESPARGIDORA 3,60 M, MONTADO SOBRE CAMINHÃO TOCO, PBT 14.300 KG, POTÊNCIA 185 CV | E175: CHP | F175: 0,0004000 | G175: 256.34 | H175: 0.1
B176: COMPOSICAO | C176: 88316 | D176: SERVENTE COM ENCARGOS COMPLEMENTARES | E176: H | F176: 0,0055000 | G176: 19.76 | H176: 0.1
B177: COMPOSICAO | C177: 89035 | D177: TRATOR DE PNEUS, POTÊNCIA 85 CV, TRAÇÃO 4X4, PESO COM LASTRO DE 4.675 KG | E177: CHP | F177: 0,0017000 | G177: 135.08 | H177: 0.22
B178: COMPOSICAO | C178: 89036 | D178: TRATOR DE PNEUS, POTÊNCIA 85 CV, TRAÇÃO 4X4, PESO COM LASTRO DE 4.675 KG | E178: CHI | F178: 0,0038000 | G178: 56.48 | H178: 0.21
B179: COMPOSICAO | C179: 91486 | D179: ESPARGIDOR DE ASFALTO PRESSURIZADO, TANQUE 6 M3 COM ISOLAÇÃO TÉRMICA, AQUECIDO COM 2 MAÇARICOS, COM BARRA ESPARGIDORA 3,60 M, MONTADO SOBRE CAMINHÃO TOCO, PBT 14.300 KG, POTÊNCIA 185 CV | E179: CHI | F179: 0,0051000 | G179: 68.43 | H179: 0.34
H180: 0
B181: PRODUÇÃO DA EQUIPE | E181: 1 | F181: CUSTO | H181: =SUM(H172:H180) -> 1.01
B182: TOTAL | H182: =H181/E181 -> 1.01 | I182: OK
B183: BDI % | H183: =1+$M$1 -> 1.2214
B184: TOTAL DO SERVIÇO - R$ | H184: =ROUND(H182*H183,2) -> 1.23
A186: 12 | B186: CODEVASF | E186: COMPOSIÇÃO DE PREÇO UNITÁRIO | I186: =H204 -> 129.6 | J186: =H206 -> 158.29
B187: OBRA: | C187: =$C$2 -> MIRABELA - PAVIMENTAÇÃO ASFÁLTICA EM CBUQ - VIAS DIVERSAS (ITEM 2) | G187: DATA: | H187: =$H$2 -> OUTUBRO / 2023
B188: SERVIÇO: | C188: =VLOOKUP(A186,ORÇAMENTO!$A$10:$I$29,3) -> EXECUÇÃO DE PAVIMENTO COM APLICAÇÃO DE CONCRETO ASFÁLTICO USINADO A QUENTE (CBUQ), CAMADA DE ROLAMENTO - EXCLUSIVE TRANSPORTE | E188: SINAPI | F188: =VLOOKUP(A186,ORÇAMENTO!$A$10:$I$29,4) -> 95995 | G188: UNIDADE: | H188: =VLOOKUP(A186,ORÇAMENTO!$A$10:$I$29,5) -> M3
B190: TIPO ITEM | C190: CODIGO ITEM | D190: DESCRIÇÃO ITEM | E190: UNIDADE ITEM | F190: COEFICIENTE | G190: PRECO UNITARIO | H190: CUSTO TOTAL
B191: INSUMO | C191: COTAÇÃO | D191: CONCRETO BETUMINOSO USINADO A QUENTE (CBUQ) PARA PAVIMENTACAO ASFALTICA, PADRAO DNIT, FAIXA C, COM CAP 50/70 - AQUISICAO POSTO USINA (FORNECIMENTO COM BDI DIFERENCIADO) | E191: T | F191: 2,5548000 | H191: =ROUNDDOWN(F191*G191,2) -> 0
B192: COMPOSICAO | C192: 5835 | D192: VIBROACABADORA DE ASFALTO SOBRE ESTEIRAS, LARGURA DE PAVIMENTAÇÃO 1,90 M A 5,30 M, POTÊNCIA 105 HP CAPACIDADE 450 T/H | E192: CHP | F192: 0,0464000 | G192: 396,75 | H192: 18.4
B193: COMPOSICAO | C193: 5837 | D193: VIBROACABADORA DE ASFALTO SOBRE ESTEIRAS, LARGURA DE PAVIMENTAÇÃO 1,90 M A 5,30 M, POTÊNCIA 105 HP CAPACIDADE 450 T/H | E193: CHI | F193: 0,0949000 | G193: 165,12 | H193: 15.66
B194: COMPOSICAO | C194: 88314 | D194: RASTELEIRO COM ENCARGOS COMPLEMENTARES | E194: H | F194: 1,1301000 | G194: 26,52 | H194: 29.97
B195: COMPOSICAO | C195: 91386 | D195: CAMINHÃO BASCULANTE 10 M3, TRUCADO CABINE SIMPLES, PESO BRUTO TOTAL 23.000 KG, CARGA ÚTIL MÁXIMA 15.935 KG, DISTÂNCIA ENTRE EIXOS 4,80 M, POTÊNCIA 230 CV INCLUSIVE CAÇAMBA METÁLICA | E195: CHP | F195: 0,0464000 | G195: 252,13 | H195: 11.69
B196: COMPOSICAO | C196: 95631 | D196: ROLO COMPACTADOR VIBRATORIO TANDEM, ACO LISO, POTENCIA 125 HP, PESO SEM/COM LASTRO 10,20/11,65 T, LARGURA DE TRABALHO 1,73 M | E196: CHP | F196: 0,0805000 | G196: 228,02 | H196: 18.35
B197: COMPOSICAO | C197: 95632 | D197: ROLO COMPACTADOR VIBRATORIO TANDEM, ACO LISO, POTENCIA 125 HP, PESO SEM/COM LASTRO 10,20/11,65 T, LARGURA DE TRABALHO 1,73 M | E197: CHI | F197: 0,0607000 | G197: 89,32 | H197: 5.42
B198: COMPOSICAO | C198: 96155 | D198: TRATOR DE PNEUS COM POTÊNCIA DE 85 CV, TRAÇÃO 4X4, COM VASSOURA MECÂNICA ACOPLADA | E198: CHI | F198: 0,1071000 | G198: 61,42 | H198: 6.57
B199: COMPOSICAO | C199: 96157 | D199: TRATOR DE PNEUS COM POTÊNCIA DE 85 CV, TRAÇÃO 4X4, COM VASSOURA MECÂNICA ACOPLADA | E199: CHP | F199: 0,0341000 | G199: 144,29 | H199: 4.92
B200: COMPOSICAO | C200: 96463 | D200: ROLO COMPACTADOR DE PNEUS, ESTATICO, PRESSAO VARIAVEL, POTENCIA 110 HP, PESO SEM/COM LASTRO 10,8/27 T, LARGURA DE ROLAGEM 2,30 M | E200: CHP | F200: 0,0419000 | G200: 218,21 | H200: 9.14
B201: COMPOSICAO | C201: 96464 | D201: ROLO COMPACTADOR DE PNEUS, ESTATICO, PRESSAO VARIAVEL, POTENCIA 110 HP, PESO SEM/COM LASTRO 10,8/27 T, LARGURA DE ROLAGEM 2,30 M | E201: CHI | F201: 0,0990000 | G201: 95,83 | H201: 9.48
H202: 0
B203: PRODUÇÃO DA EQUIPE | E203: 1 | F203: CUSTO | H203: =SUM(H191:H202) -> 129.6
B204: TOTAL | H204: =H203/E203 -> 129.6 | I204: OK
B205: BDI % | H205: =1+$M$1 -> 1.2214
B206: TOTAL DO SERVIÇO - R$ | H206: =ROUND(H204*H205,2) -> 158.29
A208: 13 | B208: CODEVASF | E208: COMPOSIÇÃO DE PREÇO UNITÁRIO | I208: =H217 -> 0.73 | J208: =H219 -> 0.89
B209: OBRA: | C209: =$C$2 -> MIRABELA - PAVIMENTAÇÃO ASFÁLTICA EM CBUQ - VIAS DIVERSAS (ITEM 2) | G209: DATA: | H209: =$H$2 -> OUTUBRO / 2023
B210: SERVIÇO: | C210: =VLOOKUP(A208,ORÇAMENTO!$A$10:$I$29,3) -> TRANSPORTE COM CAMINHÃO BASCULANTE, EM VIA URBANA PAVIMENTADA | E210: SINAPI | F210: =VLOOKUP(A208,ORÇAMENTO!$A$10:$I$29,4) -> 95427 | G210: UNIDADE: | H210: =VLOOKUP(A208,ORÇAMENTO!$A$10:$I$29,5) -> M3XKM
B212: TIPO ITEM | C212: CODIGO ITEM | D212: DESCRIÇÃO ITEM | E212: UNIDADE ITEM | F212: COEFICIENTE | G212: PRECO UNITARIO | H212: CUSTO TOTAL
B213: COMPOSICAO | C213: 89883 | D213: CAMINHÃO BASCULANTE 18 M3, COM CAVALO MECÂNICO DE CAPACIDADE MÁXIMA DE TRAÇÃO COMBINADO DE 45000 KG, POTÊNCIA 330 CV, INCLUSIVE SEMIREBOQUE COM CAÇAMBA METÁLICA | E213: CHP | F213: 0,0019000 | G213: 348.45 | H213: =ROUNDDOWN(F213*G213,2) -> 0.66
B214: COMPOSICAO | C214: 89884 | D214: CAMINHÃO BASCULANTE 18 M3, COM CAVALO MECÂNICO DE CAPACIDADE MÁXIMA DE TRAÇÃO COMBINADO DE 45000 KG, POTÊNCIA 330 CV, INCLUSIVE SEMIREBOQUE COM CAÇAMBA METÁLICA | E214: CHI | F214: 0,0008000 | G214: 93.65 | H214: =ROUNDDOWN(F214*G214,2) -> 0.07
H215: =ROUNDDOWN(F215*G215,2) -> 0
B216: PRODUÇÃO DA EQUIPE | E216: 1 | F216: CUSTO | H216: =SUM(H213:H215) -> 0.73
B217: TOTAL | H217: =H216/E216 -> 0.73 | I217: OK
B218: BDI % | H218: =1+$M$1 -> 1.2214
B219: TOTAL DO SERVIÇO - R$ | H219: =ROUND(H217*H218,2) -> 0.89
A221: 13.5 | B221: CODEVASF | E221: COMPOSIÇÃO DE PREÇO UNITÁRIO | I221: =H230 -> 1.07 | J221: =H232 -> 1.31
B222: OBRA: | C222: =$C$2 -> MIRABELA - PAVIMENTAÇÃO ASFÁLTICA EM CBUQ - VIAS DIVERSAS (ITEM 2) | G222: DATA: | H222: =$H$2 -> OUTUBRO / 2023
B223: SERVIÇO: | C223: =VLOOKUP(A221,ORÇAMENTO!$A$10:$I$29,3) -> TRANSPORTE COM CAMINHÃO BASCULANTE, EM VIA URBANA EM REVESTIMENTO PRIMÁRIO | E223: SINAPI | F223: =VLOOKUP(A221,ORÇAMENTO!$A$10:$I$29,4) -> 95426 | G223: UNIDADE: | H223: =VLOOKUP(A221,ORÇAMENTO!$A$10:$I$29,5) -> M3XKM
B225: TIPO ITEM | C225: CODIGO ITEM | D225: DESCRIÇÃO ITEM | E225: UNIDADE ITEM | F225: COEFICIENTE | G225: PRECO UNITARIO | H225: CUSTO TOTAL
B226: COMPOSICAO | C226: 89883 | D226: CAMINHÃO BASCULANTE 18 M3, COM CAVALO MECÂNICO DE CAPACIDADE MÁXIMA DE TRAÇÃO COMBINADO DE 45000 KG, POTÊNCIA 330 CV, INCLUSIVE SEMIREBOQUE COM CAÇAMBA METÁLICA | E226: CHP | F226: 0.0025 | G226: 348.45 | H226: =ROUNDDOWN(F226*G226,2) -> 0.87
B227: COMPOSICAO | C227: 89884 | D227: CAMINHÃO BASCULANTE 18 M3, COM CAVALO MECÂNICO DE CAPACIDADE MÁXIMA DE TRAÇÃO COMBINADO DE 45000 KG, POTÊNCIA 330 CV, INCLUSIVE SEMIREBOQUE COM CAÇAMBA METÁLICA | E227: CHI | F227: 0,0022000 | G227: 93.65 | H227: =ROUNDDOWN(F227*G227,2) -> 0.2
H228: =ROUNDDOWN(F228*G228,2) -> 0
... 104 more rows

Sheet BDI SERV
B1: DETALHAMENTO DO BDI - SERVIÇOS
B4: Item | C4: Descrição dos Serviços | D4: % | E4: %
D5: PV | E5: CD
B7: 1 | C7: ADMINISTRAÇÃO CENTRAL | E7: 4.01
B8: 1.1 | C8: ESCRITÓRIO CENTRAL
B9: 1.2 | C9: VIAGENS
B10: 1.3 | C10: OUTROS
B12: 2 | C12: IMPOSTOS E TAXAS | D12: =SUM(D13:D16) -> 6.15 | E12: =SUM(E13:E16) -> 7.69
B13: 2.1 | C13: ISS (*) | D13: =5*0.5 -> 2.5 | E13: =ROUND(D13*1.2515,2) -> 3.13
B14: 2.2 | C14: PIS | D14: 0.65 | E14: =ROUND(D14*1.2515,2) -> 0.81
B15: 2.3 | C15: Cofins | D15: 3 | E15: =ROUND(D15*1.2515,2) -> 3.75
B16: 2.4 | C16: CONTRIBUIÇÃO PREVIDENCIÁRIA SOBRE A RENDA BRUTA | D16: 0 | E16: =ROUND(D16*1.2515,2) -> 0
B18: 3 | C18: TAXA DE RISCO | E18: =SUM(E19:E22) -> 0.96
B19: 3.1 | C19: SEGURO | E19: 0.2
B20: 3.2 | C20: RISCO | E20: 0.56
B21: 3.3 | C21: GARANTIA | E21: 0.2
B23: 4 | C23: DESPESAS FINANCEIRAS | E23: 1.11
B25: 5 | C25: LUCRO | E25: 8
C27: BDI - CALCULADO | E27: =ROUND((((1+(E7+E18)/100)*(1+E23/100)*(1+E25/100)/(1-D12/100)-1)*100),2) -> 22.14
A29: BDI = ((1+((AC+S+R+G)/100))x(1+DF/100)x(1+L/100)/(1-I/100)-1)*100
B31: BDI (CALCULADO): | D31: =ROUND((((1+((E7+E18)/100))*(1+E23/100)*(1+E25/100))/(1-D12/100)-1)*100,2) -> 22.14 | E31: %
A33: (*) ISS CONFORME LEI MUNICIPAL Nº 1241 / 2017 - DECLARAÇÃO EM ANEXO, APLICANDO-SE A DEDUÇÃO PREVISTA NO §12 DO ART. 120 REFERENTE AOS MATERIAIS (50% SEM NECESSIDADE DE COMPROVAÇÃO)
A37: BDI EM CONFORMIDADE COM OS ACÓRDÃOS Nº 2369/2011 e ACÓRDÃO Nº 2.622/2013 - TCU - PLENÁRIO

Sheet BDI FORN
B1: DETALHAMENTO DO BDI - FORNECIMENTO (MATERIAL ASFÁLTICO)
B4: Item | C4: Descrição dos Serviços | D4: % | E4: %
D5: PV | E5: CD
B7: 1 | C7: ADMINISTRAÇÃO CENTRAL | E7: 3.72
B8: 1.1 | C8: ESCRITÓRIO CENTRAL
B9: 1.2 | C9: VIAGENS
B10: 1.3 | C10: OUTROS
B12: 2 | C12: IMPOSTOS E TAXAS | D12: =SUM(D13:D16) -> 3.65 | E12: =SUM(E13:E16) -> 4.56
B13: 2.1 | C13: ISS (*) | E13: =ROUND(D13*1.2515,2) -> 0
B14: 2.2 | C14: PIS | D14: 0.65 | E14: =ROUND(D14*1.2515,2) -> 0.81
B15: 2.3 | C15: Cofins | D15: 3 | E15: =ROUND(D15*1.2515,2) -> 3.75
B16: 2.4 | C16: CONTRIBUIÇÃO PREVIDENCIÁRIA SOBRE A RENDA BRUTA | D16: 0 | E16: =ROUND(D16*1.2515,2) -> 0
B18: 3 | C18: TAXA DE RISCO | E18: =SUM(E19:E22) -> 0.82
B19: 3.1 | C19: SEGURO | E19: 0.16
B20: 3.2 | C20: RISCO | E20: 0.5
B21: 3.3 | C21: GARANTIA | E21: 0.16
B23: 4 | C23: DESPESAS FINANCEIRAS | E23: 0.94
B25: 5 | C25: LUCRO | E25: 5
C27: BDI - CALCULADO | E27: =ROUND((((1+(E7+E18)/100)*(1+E23/100)*(1+E25/100)/(1-D12/100)-1)*100),2) -> 15
A29: BDI = ((1+((AC+S+R+G)/100))x(1+DF/100)x(1+L/100)/(1-I/100)-1)*100
B31: BDI (CALCULADO): | D31: =ROUND((((1+((E7+E18)/100))*(1+E23/100)*(1+E25/100))/(1-D12/100)-1)*100,2) -> 15 | E31: %
A37: BDI EM CONFORMIDADE COM OS ACÓRDÃOS Nº 2369/2011 e ACÓRDÃO Nº 2.622/2013 - TCU - PLENÁRIO

Sheet CRONOGRAMA
B1: CRONOGRAMA FÍSICO-FINANCEIRO
B2: OBRA: | C2: =ORÇAMENTO!C5 -> MIRABELA - PAVIMENTAÇÃO ASFÁLTICA EM CBUQ - VIAS DIVERSAS (ITEM 2) | F2: VALOR: | G2: =ORÇAMENTO!I36 -> 3757477.57
F3: PRAZO: | G3: 180 DIAS
B5: ITEM | C5: ETAPAS/DESCRIÇAO | D5: FISICO/ FINANCEIRO | E5: TOTAL ETAPAS | F5: MÊS 1 | G5: MÊS 2 | H5: MÊS 3 | I5: MÊS 4 | J5: MÊS 5 | K5: MÊS 6 | L5: TOTAL
A6: A | B6: =VLOOKUP(A6,ORÇAMENTO!$A$9:$I$36,2) -> 1 | C6: =VLOOKUP(A6,ORÇAMENTO!$A$9:$I$36,3) -> SERVIÇOS PRELIMINARES | D6: FISICO | E6: =ROUND(E7/$G$2,4) -> 0.0719 | F6: 0.1 | G6: 0.2 | H6: 0.2 | I6: 0.2 | J6: 0.2 | K6: 0.1 | L6: =SUM(F6:K6) -> 1
D7: FINANCEIRO | E7: =ORÇAMENTO!I9 -> 270300.96 | F7: =ROUND($E$7*F6,2) -> 27030.1 | G7: 54060.19 | H7: 54060.19 | I7: 54060.19 | J7: 54060.19 | K7: 27030.1 | L7: =SUM(F7:K7) -> 270300.96
A8: B | B8: =VLOOKUP(A8,ORÇAMENTO!$A$9:$I$36,2) -> 2 | C8: =VLOOKUP(A8,ORÇAMENTO!$A$9:$I$36,3) -> TERRAPLANAGEM E PAVIMENTAÇÃO | D8: FISICO | E8: =ROUND(E9/$G$2,4) -> 0.2747 | F8: 0.1 | G8: 0.2 | H8: 0.2 | I8: 0.2 | J8: 0.2 | K8: 0.1 | L8: =SUM(F8:K8) -> 1
D9: FINANCEIRO | E9: =ORÇAMENTO!I15 -> 1032119 | F9: =ROUND($E$9*F8,2) -> 103211.9 | G9: 206423.8 | H9: 206423.8 | I9: 206423.8 | J9: 206423.8 | K9: 103211.9 | L9: =SUM(F9:K9) -> 1032119
A10: C | B10: =VLOOKUP(A10,ORÇAMENTO!$A$9:$I$36,2) -> 3 | C10: =VLOOKUP(A10,ORÇAMENTO!$A$9:$I$36,3) -> TRANSPORTE DE MATERIAIS | D10: FISICO | E10: =ROUND(E11/$G$2,4) -> 0.0397 | F10: 0.1 | G10: 0.2 | H10: 0.2 | I10: 0.2 | J10: 0.2 | K10: 0.1 | L10: =SUM(F10:K10) -> 1
D11: FINANCEIRO | E11: =ORÇAMENTO!I23 -> 149005.99 | F11: =ROUND($E$11*F10,2) -> 14900.6 | G11: 29801.2 | H11: 29801.2 | I11: 29801.2 | J11: 29801.2 | K11: 14900.6 | L11: =SUM(F11:K11)-0.04 -> 149005.96
A12: D | B12: =VLOOKUP(A12,ORÇAMENTO!$A$9:$I$36,2) -> 4 | C12: =VLOOKUP(A12,ORÇAMENTO!$A$9:$I$36,3) -> OBRAS COMPLEMENTARES | D12: FISICO | E12: =ROUND(E13/$G$2,4) -> 0.1832 | F12: 0 | G12: 0.2 | H12: 0.2 | I12: 0.2 | J12: 0.2 | K12: 0.2 | L12: =SUM(F12:K12) -> 1
D13: FINANCEIRO | E13: =ORÇAMENTO!I28 -> 688227.5 | F13: =ROUND($E$13*F12,2) -> 0 | G13: 137645.5 | H13: 137645.5 | I13: 137645.5 | J13: 137645.5 | K13: 137645.5 | L13: =SUM(F13:K13)-0.02 -> 688227.48
A14: E | B14: =VLOOKUP(A14,ORÇAMENTO!$A$9:$I$36,2) -> 5 | C14: =VLOOKUP(A14,ORÇAMENTO!$A$9:$I$36,3) -> FORNECIMENTOS - MATERIAL ASFÁLTICO (BDI DIFERENCIADO) | D14: FISICO | E14: =ROUND(E15/$G$2,4) -> 0.4306 | F14: 0.1 | G14: 0.2 | H14: 0.2 | I14: 0.2 | J14: 0.2 | K14: 0.1 | L14: =SUM(F14:K14) -> 1
D15: FINANCEIRO | E15: =ORÇAMENTO!I32 -> 1617824.12 | F15: =ROUND($E$15*F14,2) -> 161782.41 | G15: 323564.82 | H15: 323564.82 | I15: 323564.82 | J15: 323564.82 | K15: 161782.41 | L15: =SUM(F15:K15)-0.02 -> 1617824.08
B16: TOTAL | D16: FISICO | E16: =SUM(F16:K16) -> 0.9999999973 | F16: =F17/$E$17 -> 0.08168379033 | G16: 0.1999999989 | H16: 0.1999999989 | I16: 0.1999999989 | J16: 0.1999999989 | K16: 0.1183162113 | L16: =SUM(F16:K16) -> 0.9999999973
D17: FINANCEIRO | E17: =E11+E9+E7+E13+E15 -> 3757477.57 | F17: 306925.01 | G17: 751495.51 | H17: 751495.51 | I17: 751495.51 | J17: 751495.51 | K17: 444570.51 | L17: =SUM(F17:K17)+0.01 -> 3757477.57
B19: OBSERVAÇÕES:
